bitfinex-derivatives/quotes_BNBF0:USTF0_20250524
["timestamp","ask_amount","ask_price","bid_price","bid_amount"]
[1748090942593,0.29593678,675.82,674.97,0.8686168]
[1748090942894,0.2576356,675.75,674.97,0.8686168]
[1748090943090,0.29597182,675.74,674.97,0.8686168]
[1748090943493,0.29597182,675.74,674.98,0.8686168]
[1748090944599,0.29597182,675.74,674.99,0.8686168]
[1748090945895,0.29597182,675.74,675.0,0.8686168]
[1748090947500,0.29597182,675.74,675.01,0.8686168]
[1748090948803,0.29597182,675.74,675.02,0.8686168]
[1748090949796,0.29597182,675.74,674.85,0.618]
[1748090950998,0.29597182,675.74,674.86,0.86772063]
[1748090952803,0.29597182,675.74,674.87,0.86772063]
[1748090954102,0.29597182,675.74,674.88,0.86772063]
[1748090955407,0.29597182,675.74,674.89,0.86772063]
[1748090956506,0.29597182,675.74,674.9,0.86772063]
[1748090956811,0.29597182,675.74,674.91,0.807]
[1748090957504,0.29597182,675.74,674.92,0.86772063]
[1748090958408,0.29597182,675.74,674.93,0.86772063]
[1748090960111,0.29597182,675.74,674.94,0.86772063]
[1748090961214,0.29597182,675.74,674.95,0.86772063]
[1748090963213,0.29597182,675.74,674.96,0.86772063]
[1748090964417,0.29597182,675.74,674.97,0.86772063]
[1748090965819,0.29597182,675.74,674.91,0.807]
[1748090966816,0.29597182,675.74,674.92,0.86712114]
[1748090968019,0.29597182,675.74,674.91,0.807]
[1748090970118,0.29597182,675.74,674.92,0.86682234]
[1748090971221,0.29597182,675.74,674.91,0.807]
[1748090991834,0.29597182,675.74,674.64,0.84109865]
[1748090992836,0.29597182,675.74,674.65,1.70697005]
[1748090994335,0.29597182,675.74,674.66,0.8658714]
[1748090994636,0.29597182,675.74,674.67,0.528]
[1748090995840,0.29597182,675.74,674.75,0.84109865]
[1748090996738,0.29597182,675.74,674.76,0.8658714]
[1748090997539,0.29597182,675.74,674.82,0.84109865]
[1748090999040,0.29597182,675.74,674.83,0.8658714]
[1748091000741,0.29597182,675.74,674.92,0.84109865]
[1748091001843,0.29597182,675.74,674.93,0.8658714]
[1748091003342,0.29597182,675.74,674.95,0.84109865]
[1748091004343,0.29597182,675.74,674.96,0.8658714]
[1748091005643,0.29597182,675.74,674.97,1.70697005]
[1748091007445,0.29597182,675.74,674.98,0.8658714]
[1748091008745,0.29597182,675.74,674.97,0.84109865]
[1748091008746,0.29597182,675.74,674.99,0.8658714]
[1748091009147,0.29597182,675.74,675.0,0.646]
[1748091009842,0.29597182,675.74,675.01,0.8658714]
[1748091011151,0.29597182,675.74,675.02,0.8658714]
[1748091012348,0.29597182,675.74,675.03,0.8658714]
[1748091013547,0.29597182,675.74,675.04,0.8658714]
[1748091015149,0.29597182,675.74,675.05,0.8658714]
[1748091016554,0.29597182,675.74,675.06,0.8658714]
[1748091017654,0.29597182,675.74,675.07,0.8658714]
[1748091019454,0.29597182,675.74,675.01,0.8658714]
[1748091020251,0.29597182,675.74,675.02,0.8658714]
[1748091021557,0.29597182,675.74,675.01,0.8658714]
[1748091028769,0.29597182,675.74,675.0,0.646]
[1748091030969,0.29597182,675.74,675.01,0.87334051]
[1748091032270,0.29597182,675.74,675.0,0.646]
[1748091036274,0.29597182,675.74,675.01,0.8736453]
[1748091037574,0.29597182,675.74,675.0,0.646]
[1748091040078,0.29597182,675.74,674.77,0.84109865]
[1748091040578,0.29597182,675.74,674.78,0.87422141]
[1748091041779,0.29597182,675.74,674.79,0.87422141]
[1748091042681,0.29597182,675.74,674.8,0.87422141]
[1748091043682,0.29597182,675.74,674.81,1.46022141]
[1748091045486,0.29597182,675.74,674.82,0.87422141]
[1748091046486,0.29597182,675.74,674.83,0.87422141]
[1748091047784,0.29597182,675.74,674.84,0.87422141]
[1748091048987,0.29597182,675.74,674.85,0.87422141]
[1748091050589,0.29597182,675.74,674.86,0.87422141]
[1748091051990,0.29597182,675.74,674.87,0.87422141]
[1748091053391,0.29597182,675.74,674.88,0.87422141]
[1748091054593,0.29597182,675.74,674.89,0.87422141]
[1748091056094,0.29597182,675.74,674.9,0.87422141]
[1748091057496,0.29597182,675.74,674.91,0.87422141]
[1748091058998,0.29597182,675.74,674.92,0.87422141]
[1748091059999,0.29597182,675.74,674.93,0.87422141]
[1748091061199,0.29597182,675.74,674.94,0.87422141]
[1748091062199,0.29597182,675.74,674.95,0.87422141]
[1748091063603,0.29597182,675.74,674.96,0.87422141]
[1748091065003,0.29597182,675.74,674.97,0.87422141]
[1748091066303,0.29597182,675.74,674.98,0.87422141]
[1748091066600,0.29597182,675.74,674.99,0.786]
[1748091067006,0.29597182,675.74,675.0,0.87422141]
[1748091068301,0.29597182,675.74,675.01,0.87422141]
[1748091069311,0.29597182,675.74,675.02,0.87422141]
[1748091070707,0.29597182,675.74,675.03,0.87422141]
[1748091072007,0.29597182,675.74,674.99,0.786]
[1748091072008,0.29597182,675.74,675.04,0.87422141]
[1748091072912,0.29597182,675.74,675.05,0.87422141]
[1748091074613,0.29597182,675.74,675.06,0.87422141]
[1748091075814,0.29597182,675.74,675.07,0.87422141]
[1748091077418,0.29597182,675.74,675.08,0.87422141]
[1748091078715,0.29597182,675.74,674.99,0.786]
[1748091078716,0.29597182,675.74,675.09,0.87422141]
[1748091079422,0.29597182,675.74,675.1,0.87422141]
[1748091080623,0.29597182,675.74,675.11,0.87422141]
[1748091081725,0.29597182,675.74,675.12,0.87422141]
[1748091082126,0.29597182,675.74,675.13,0.709]
[1748091083226,0.29597182,675.74,675.14,0.87422141]
[1748091084522,0.29597182,675.74,675.15,0.87422141]
[1748091085627,0.29597182,675.74,675.16,0.87422141]
[1748091086726,0.29597182,675.74,675.17,0.87422141]
[1748091088324,0.29597182,675.74,675.18,0.87422141]
[1748091089729,0.29597182,675.74,675.19,0.87422141]
[1748091091231,0.29597182,675.74,675.2,0.87422141]
[1748091092332,0.29597182,675.74,675.21,0.87422141]
[1748091094334,0.29597182,675.74,675.22,0.87422141]
[1748091095736,0.29597182,675.74,675.13,0.709]
[1748091096935,0.29597182,675.74,675.14,0.87707058]
[1748091097935,0.29597182,675.74,675.15,0.87707058]
[1748091099538,0.29597182,675.74,675.16,0.87707058]
[1748091100840,0.29597182,675.74,675.17,0.87707058]
[1748091102342,0.29597182,675.74,675.18,0.87707058]
[1748091103546,0.29597182,675.74,675.19,0.87707058]
[1748091105045,0.29597182,675.74,675.2,0.87707058]
[1748091106245,0.29597182,675.74,675.21,0.87707058]
[1748091107748,0.29597182,675.74,675.22,0.87707058]
[1748091109250,0.29597182,675.74,675.23,0.87707058]
[1748091110651,0.29597182,675.74,675.13,0.709]
[1748091111452,0.29597182,675.74,675.14,0.87675794]
[1748091113654,0.29597182,675.74,675.15,0.87675794]
[1748091114750,0.29597182,675.74,675.16,0.87675794]
[1748091116052,0.29597182,675.74,675.17,0.87675794]
[1748091117256,0.29597182,675.74,675.18,0.87675794]
[1748091118456,0.29597182,675.74,675.19,0.87675794]
[1748091119358,0.29597182,675.74,675.2,0.87675794]
[1748091120754,0.29597182,675.74,675.21,0.87675794]
[1748091122161,0.29597182,675.74,675.22,0.87675794]
[1748091123964,0.29597182,675.74,675.23,0.87675794]
[1748091125367,0.29597182,675.74,675.24,0.87675794]
[1748091127066,0.29597182,675.74,675.13,0.709]
[1748091127770,0.29597182,675.74,675.14,0.8771809]
[1748091129365,0.29597182,675.74,675.15,0.8771809]
[1748091130674,0.29597182,675.74,675.16,0.8771809]
[1748091131875,0.29597182,675.74,675.17,0.8771809]
[1748091133470,0.29597182,675.74,675.18,0.8771809]
[1748091135275,0.29597182,675.74,675.19,0.8771809]
[1748091136076,0.29597182,675.74,675.2,0.583]
[1748091136276,0.29597182,675.74,675.21,0.8771809]
[1748091137572,0.29597182,675.74,675.22,0.8771809]
[1748091138076,0.29597182,675.74,675.23,0.8771809]
[1748091139178,0.29597182,675.74,675.24,0.8771809]
[1748091140576,0.29597182,675.74,675.25,0.8771809]
[1748091142079,0.29597182,675.74,675.26,0.8771809]
[1748091143274,0.29597182,675.74,675.2,0.583]
[1748091144480,0.29597182,675.74,675.21,0.8810234]
[1748091145974,0.29597182,675.74,675.22,0.8810234]
[1748091147576,0.29597182,675.74,675.23,0.8810234]
[1748091149082,0.29597182,675.74,675.24,0.8810234]
[1748091150681,0.29597182,675.74,675.25,0.8810234]
[1748091152083,0.29597182,675.74,675.26,0.8810234]
[1748091153483,0.29597182,675.74,675.27,0.8810234]
[1748091154387,0.29597182,675.74,675.28,0.8810234]
[1748091155884,0.29597182,675.74,675.29,0.8810234]
[1748091156786,0.29597182,675.74,675.3,0.8810234]
[1748091157087,0.29597182,675.74,675.31,0.536]
[1748091158286,0.29597182,675.74,675.32,0.8810234]
[1748091159589,0.29597182,675.74,675.33,0.8810234]
[1748091160690,0.29597182,675.74,675.31,0.536]
[1748091162192,0.29597182,675.74,675.32,0.88171314]
[1748091163392,0.29597182,675.74,675.33,0.88171314]
[1748091164592,0.29597182,675.74,675.31,0.536]
[1748091166692,0.29597182,675.74,675.32,0.88164465]
[1748091167493,0.29597182,675.74,675.33,0.88164465]
[1748091168695,0.29597182,675.74,675.34,0.88164465]
[1748091169494,0.29597182,675.74,675.35,0.88164465]
[1748091170794,0.29597182,675.74,675.36,0.88164465]
[1748091171796,0.29597182,675.74,675.37,0.88164465]
[1748091173493,0.29597182,675.74,675.38,0.88164465]
[1748091174897,0.29597182,675.74,675.39,0.88164465]
[1748091176199,0.29597182,675.74,675.4,0.88164465]
[1748091177498,0.29597182,675.74,675.41,0.88164465]
[1748091178800,0.29597182,675.74,675.42,0.88164465]
[1748091179700,0.29597182,675.74,675.43,0.88164465]
[1748091181502,0.29597182,675.74,675.31,0.536]
[1748091182703,0.29597182,675.74,675.32,0.88066127]
[1748091184101,0.29597182,675.74,675.33,0.88066127]
[1748091185598,0.29597182,675.74,675.34,0.88066127]
[1748091186899,0.29597182,675.74,675.31,0.536]
[1748091187805,0.29597182,675.74,675.32,0.88000578]
[1748091189608,0.29597182,675.74,675.33,0.88000578]
[1748091190510,0.29597182,675.74,675.31,0.536]
[1748091241652,0.29597182,675.74,675.32,0.88127744]
[1748091243761,0.29597182,675.74,675.33,0.88127744]
[1748091244658,0.29597182,675.74,675.34,0.603]
[1748091245155,0.29597182,675.74,675.35,0.88127744]
[1748091246561,0.29597182,675.74,675.36,0.88127744]
[1748091247461,0.29597182,675.74,675.37,0.88127744]
[1748091248771,0.29597182,675.74,675.38,0.88127744]
[1748091249774,0.29597182,675.74,675.39,0.88127744]
[1748091250671,0.29597182,675.74,675.35,0.88127744]
[1748091251973,0.29597182,675.74,675.34,0.603]
[1748091254875,0.29597182,675.74,675.35,0.88116868]
[1748091255776,0.29597182,675.74,675.36,0.88116868]
[1748091257081,0.29597182,675.74,675.35,0.88116868]
[1748091262385,0.29597182,675.74,675.36,0.88116868]
[1748091263787,0.29597182,675.74,675.35,0.88116868]
[1748091273898,0.29597182,675.74,675.15,0.84109865]
[1748091275296,0.29597182,675.74,675.16,0.88116868]
[1748091275897,0.29597182,675.74,675.17,0.7]
[1748091276698,0.29597182,675.74,675.18,0.88116868]
[1748091277999,0.29597182,675.74,675.19,0.88116868]
[1748091279702,0.29597182,675.74,675.17,0.7]
[1748091279703,0.29597182,675.74,675.2,0.88116868]
[1748091280904,0.29597182,675.74,675.21,0.88116868]
[1748091283105,0.29597182,675.74,675.22,0.88116868]
[1748091284106,0.29597182,675.74,675.23,0.88116868]
[1748091285306,0.29597182,675.74,675.24,0.88116868]
[1748091286708,0.29597182,675.74,675.25,0.88116868]
[1748091288210,0.29597182,675.74,675.26,0.88116868]
[1748091289314,0.29597182,675.74,675.27,0.88116868]
[1748091290814,0.29597182,675.74,675.28,0.88116868]
[1748091291614,0.29597182,675.74,675.29,0.88116868]
[1748091293614,0.29597182,675.74,675.3,0.88116868]
[1748091294716,0.29597182,675.74,675.31,0.88116868]
[1748091295815,0.29597182,675.74,675.32,0.88116868]
[1748091296717,0.29597182,675.74,675.33,0.88116868]
[1748091298117,0.29597182,675.74,675.34,0.88116868]
[1748091298818,0.29597182,675.74,675.35,0.88116868]
[1748091300318,0.29597182,675.74,675.36,0.88116868]
[1748091301121,0.29597182,675.74,675.37,0.88116868]
[1748091302723,0.29597182,675.74,675.38,0.88116868]
[1748091304019,0.29597182,675.74,675.39,0.88116868]
[1748091305227,0.29597182,675.74,675.4,0.88116868]
[1748091306530,0.29597182,675.74,675.41,0.88116868]
[1748091308131,0.29597182,675.74,675.42,0.88116868]
[1748091309330,0.29597182,675.74,675.43,0.88116868]
[1748091310432,0.29597182,675.74,675.44,0.88116868]
[1748091311435,0.29597182,675.74,675.45,0.88116868]
[1748091312735,0.29597182,675.74,675.46,0.88116868]
[1748091313936,0.29597182,675.74,675.47,0.88116868]
[1748091315337,0.29597182,675.74,675.22,0.84109865]
[1748091315539,0.29597182,675.74,675.27,0.84109865]
[1748091316539,0.29597182,675.74,675.28,0.88833134]
[1748091317734,0.29597182,675.74,675.29,0.88833134]
[1748091319241,0.29597182,675.74,675.25,0.84109865]
[1748091319242,0.29597182,675.74,675.3,0.88833134]
[1748091320441,0.29597182,675.74,675.31,0.88833134]
[1748091321843,0.29597182,675.74,675.32,0.88833134]
[1748091323439,0.29597182,675.74,675.33,0.88833134]
[1748091324846,0.29597182,675.74,675.34,0.88833134]
[1748091327047,0.29597182,675.74,675.35,0.88833134]
[1748091328149,0.29597182,675.74,675.17,0.7]
[1748091328150,0.29597182,675.74,675.36,0.88833134]
[1748091329752,0.29597182,675.74,675.37,0.88833134]
[1748091330651,0.29597182,675.74,675.38,0.88833134]
[1748091332047,0.29597182,675.74,675.39,0.88833134]
[1748091333452,0.29597182,675.74,675.4,1.72933134]
[1748091334546,0.29597182,675.74,675.41,0.88833134]
[1748091335750,0.29597182,675.74,675.42,0.88833134]
[1748091337064,0.29597182,675.74,675.43,0.88833134]
[1748091338551,0.29597182,675.74,675.44,0.88833134]
[1748091339452,0.29597182,675.74,675.45,0.88833134]
[1748091340958,0.29597182,675.74,675.46,0.88833134]
[1748091342061,0.29597182,675.74,675.47,0.88833134]
[1748091343059,0.29597182,675.74,675.48,0.88833134]
[1748091344365,0.29597182,675.74,675.49,0.88833134]
[1748091346268,0.29597182,675.74,675.5,0.88833134]
[1748091347362,0.29597182,675.74,675.51,0.88833134]
[1748091348870,0.29597182,675.74,675.52,0.88833134]
[1748091349772,0.29597182,675.74,675.53,0.88833134]
[1748091350870,0.29597182,675.74,675.37,0.84109865]
[1748091350871,0.29597182,675.74,675.54,0.88833134]
[1748091351869,0.29597182,675.74,675.55,0.88833134]
[1748091353371,0.29597182,675.74,675.56,1.46033134]
[1748091354675,0.29597182,675.74,675.57,0.88833134]
[1748091356177,0.29597182,675.74,675.58,0.88833134]
[1748091357076,0.29597182,675.74,675.59,0.88833134]
[1748091359282,0.29597182,675.74,675.6,0.88833134]
[1748091360381,0.29597182,675.74,675.61,0.88833134]
[1748091361781,0.29597182,675.74,675.62,0.88833134]
[1748091362783,0.29597182,675.74,675.56,0.572]
[1748091364285,0.29597182,675.74,675.57,0.88648572]
[1748091365380,0.29597182,675.74,675.58,0.88648572]
[1748091366887,0.29597182,675.74,675.59,0.88648572]
[1748091367986,0.29597182,675.74,675.6,0.88648572]
[1748091369188,0.29597182,675.74,675.61,0.88648572]
[1748091370485,0.29597182,675.74,675.62,0.88648572]
[1748091371490,0.29597182,675.74,675.63,0.88648572]
[1748091372392,0.29597182,675.74,675.56,0.572]
[1748091374098,0.29597182,675.74,675.57,0.88622664]
[1748091374898,0.29597182,675.74,675.58,0.88622664]
[1748091376700,0.29597182,675.74,675.59,0.88622664]
[1748091377398,0.29597182,675.74,675.6,0.88622664]
[1748091379004,0.29597182,675.74,675.61,0.88622664]
[1748091380105,0.29597182,675.74,675.62,0.88622664]
[1748091381002,0.29597182,675.74,675.63,0.88622664]
[1748091382003,0.29597182,675.74,675.64,0.88622664]
[1748091383609,0.29597182,675.74,675.65,0.88622664]
[1748091384709,0.29597182,675.74,675.66,0.88622664]
[1748091386111,0.29597182,675.74,675.67,0.88622664]
[1748091387111,0.29597182,675.74,675.68,0.88622664]
[1748091388911,0.29597182,675.74,675.69,0.88622664]
[1748091389815,0.29597182,675.74,675.7,0.88622664]
[1748091391214,0.29597182,675.74,675.71,0.88622664]
[1748091392315,0.29597182,675.74,675.72,0.88622664]
[1748091393614,0.29597182,675.74,675.73,0.88622664]
[1748091438662,0.29597182,675.74,675.57,0.861]
[1748091439664,0.29597182,675.74,675.58,0.88198365]
[1748091441264,0.29597182,675.74,675.59,0.88198365]
[1748091442458,0.29597182,675.74,675.6,0.88198365]
[1748091443262,0.29597182,675.74,675.61,0.88198365]
[1748091444465,0.29597182,675.74,675.62,0.88198365]
[1748091446466,0.29597182,675.74,675.63,0.88198365]
[1748091447467,0.29597182,675.74,675.64,0.88198365]
[1748091448662,0.29597182,675.74,675.65,0.88198365]
[1748091449866,0.29597182,675.74,675.66,0.88198365]
[1748091451469,0.29597182,675.74,675.67,0.88198365]
[1748091453070,0.29597182,675.74,675.68,0.88198365]
[1748091454973,0.29597182,675.74,675.69,0.88198365]
[1748091456680,0.29597182,675.74,675.57,0.861]
[1748091456681,0.29597182,675.74,675.7,0.88198365]
[1748091458172,0.29597182,675.74,675.71,0.88198365]
[1748091459173,0.29597182,675.74,675.72,0.88198365]
[1748091460681,0.29597182,675.74,675.73,0.88198365]
[1748091465080,0.25741359,676.38,675.73,0.88198365]
[1748091465286,0.29569614,676.37,675.73,0.88198365]
[1748091466086,0.29569614,676.37,675.74,0.88198365]
[1748091467284,0.29569614,676.37,675.75,0.88198365]
[1748091467786,0.29569614,676.37,675.76,0.839]
[1748091468388,0.29569614,676.37,675.77,0.88198365]
[1748091470083,0.29569614,676.37,675.78,0.88198365]
[1748091471581,0.29569614,676.37,675.79,0.88198365]
[1748091472683,0.29569614,676.37,675.76,0.839]
[1748091474690,0.29569614,676.37,675.77,0.88197958]
[1748091475694,0.29569614,676.37,675.78,0.88197958]
[1748091477195,0.29569614,676.37,675.79,0.88197958]
[1748091478395,0.29569614,676.37,675.76,0.839]
[1748091479498,0.29569614,676.37,675.77,0.88196237]
[1748091480596,0.29569614,676.37,675.78,0.88196237]
[1748091481697,0.29569614,676.37,675.76,0.839]
[1748091481698,0.29569614,676.37,675.79,0.88196237]
[1748091483102,0.29569614,676.37,675.76,0.839]
[1748091484403,0.29569614,676.37,675.77,0.88143228]
[1748091485502,0.29569614,676.37,675.78,0.88143228]
[1748091486499,0.29569614,676.37,675.79,0.88143228]
[1748091487606,0.29569614,676.37,675.76,0.839]
[1748091488907,0.29569614,676.37,675.77,0.8813446]
[1748091490206,0.29569614,676.37,675.78,0.8813446]
[1748091491508,0.29569614,676.37,675.79,0.8813446]
[1748091492507,0.29569614,676.37,675.8,0.8813446]
[1748091494308,0.29569614,676.37,675.76,0.839]
[1748091495102,0.29569614,676.37,675.77,0.88135949]
[1748091497009,0.29569614,676.37,675.78,0.88135949]
[1748091498208,0.29569614,676.37,675.79,0.88135949]
[1748091499409,0.29569614,676.37,675.8,0.88135949]
[1748091501110,0.29569614,676.37,675.76,0.839]
[1748091502210,0.29569614,676.37,675.77,0.88212893]
[1748091503510,0.29569614,676.37,675.78,0.88212893]
[1748091504710,0.29569614,676.37,675.79,0.88212893]
[1748091505811,0.29569614,676.37,675.8,0.88212893]
[1748091507011,0.29569614,676.37,675.81,0.88212893]
[1748091508012,0.29569614,676.37,675.82,0.88212893]
[1748091508911,0.29569614,676.37,675.83,0.783]
[1748091509516,0.29569614,676.37,675.84,0.88212893]
[1748091510714,0.29569614,676.37,675.85,0.88212893]
[1748091511615,0.29569614,676.37,675.86,0.88212893]
[1748091512217,0.29569614,676.37,675.87,0.88212893]
[1748091514317,0.29569614,676.37,675.88,0.88212893]
[1748091515418,0.29569614,676.37,675.83,0.783]
[1748091517018,0.29569614,676.37,675.84,0.88368709]
[1748091517819,0.29569614,676.37,675.85,0.88368709]
[1748091519517,0.29569614,676.37,675.86,0.88368709]
[1748091520616,0.29569614,676.37,675.87,0.88368709]
[1748091522217,0.29569614,676.37,675.88,0.88368709]
[1748091523422,0.29569614,676.37,675.83,0.783]
[1748091524724,0.29569614,676.37,675.84,0.88374399]
[1748091526226,0.29569614,676.37,675.85,0.88374399]
[1748091527428,0.29569614,676.37,675.86,0.88374399]
[1748091529128,0.29569614,676.37,675.87,0.88374399]
[1748091530528,0.29569614,676.37,675.88,0.88374399]
[1748091532126,0.29569614,676.37,675.83,0.783]
[1748091533527,0.29569614,676.37,675.84,0.88394166]
[1748091534531,0.29569614,676.37,675.85,0.88394166]
[1748091536631,0.29569614,676.37,675.86,0.88394166]
[1748091537131,0.29569614,676.37,675.87,0.884]
[1748091537836,0.29569614,676.37,675.88,0.88394166]
[1748091539133,0.29569614,676.37,675.87,0.884]
[1748091541638,0.29569614,676.37,675.88,0.88168431]
[1748091543140,0.29569614,676.37,675.87,0.884]
[1748091547646,0.29569614,676.37,675.88,0.881701]
[1748091548746,0.29569614,676.37,675.87,0.884]
[1748091584178,0.29569614,676.37,675.46,0.84109865]
[1748091584378,0.29569614,676.37,675.29,0.87030987]
[1748091584379,0.29569614,676.37,675.52,0.84109865]
[1748091585779,0.29569614,676.37,675.53,0.88155179]
[1748091587182,0.29569614,676.37,675.54,0.88155179]
[1748091588182,0.29569614,676.37,675.55,1.64155179]
[1748091589584,0.29569614,676.37,675.57,0.84109865]
[1748091590583,0.29569614,676.37,675.58,0.88155179]
[1748091591584,0.29569614,676.37,675.59,0.88155179]
[1748091592788,0.29569614,676.37,675.6,0.88155179]
[1748091594588,0.29569614,676.37,675.61,0.88155179]
[1748091596591,0.29569614,676.37,675.62,0.88155179]
[1748091597888,0.29569614,676.37,675.63,0.88155179]
[1748091598993,0.29569614,676.37,675.64,0.88155179]
[1748091600295,0.29569614,676.37,675.65,0.88155179]
[1748091601795,0.29569614,676.37,675.66,0.88155179]
[1748091603793,0.29569614,676.37,675.67,0.88155179]
[1748091605099,0.29569614,676.37,675.68,0.88155179]
[1748091606299,0.29569614,676.37,675.69,0.88155179]
[1748091607399,0.29569614,676.37,675.7,0.88155179]
[1748091608001,0.29569614,676.37,675.71,0.614]
[1748091609001,0.29569614,676.37,675.72,0.88155179]
[1748091610295,0.29569614,676.37,675.71,0.614]
[1748091610296,0.29569614,676.37,675.73,0.88155179]
[1748091611301,0.29569614,676.37,675.74,0.88155179]
[1748091612503,0.29569614,676.37,675.75,0.88155179]
[1748091614404,0.29569614,676.37,675.72,0.88155179]
[1748091615807,0.29569614,676.37,675.73,0.88155179]
[1748091616707,0.29569614,676.37,675.72,0.88155179]
[1748091617510,0.29569614,676.37,675.71,0.614]
[1748091620512,0.29569614,676.37,675.72,0.88399747]
[1748091622212,0.29569614,676.37,675.71,0.614]
[1748091624413,0.29569614,676.37,675.72,0.88428833]
[1748091625214,0.29569614,676.37,675.71,0.614]
[1748091627916,0.29569614,676.37,675.72,0.88437392]
[1748091630320,0.29569614,676.37,675.71,0.614]
[1748091636619,0.29569614,676.37,675.72,0.88461664]
[1748091637621,0.29569614,676.37,675.73,0.88461664]
[1748091639625,0.29569614,676.37,675.74,0.88461664]
[1748091640923,0.29569614,676.37,675.75,0.88461664]
[1748091642025,0.29569614,676.37,675.76,0.88461664]
[1748091643226,0.29569614,676.37,675.77,0.88461664]
[1748091644325,0.29569614,676.37,675.78,0.88461664]
[1748091645528,0.29569614,676.37,675.79,0.88461664]
[1748091646426,0.29569614,676.37,675.8,0.669]
[1748091663448,0.29569614,676.37,675.81,0.88392567]
[1748091665347,0.29569614,676.37,675.82,0.88392567]
[1748091666442,0.29569614,676.37,675.83,0.88392567]
[1748091667943,0.29569614,676.37,675.84,0.88392567]
[1748091669545,0.29569614,676.37,675.85,0.88392567]
[1748091671249,0.29569614,676.37,675.86,0.88392567]
[1748091672256,0.29569614,676.37,675.87,0.88392567]
[1748091673553,0.29569614,676.37,675.81,0.88392567]
[1748091674554,0.29569614,676.37,675.82,0.88392567]
[1748091675855,0.29569614,676.37,675.83,0.88392567]
[1748091676852,0.29569614,676.37,675.81,0.88392567]
[1748091679157,0.29569614,676.37,675.8,0.669]
[1748091680564,0.29569614,676.37,675.56,0.84109865]
[1748091681460,0.29569614,676.37,675.57,0.88614076]
[1748091682964,0.29569614,676.37,675.58,0.88614076]
[1748091683165,0.29569614,676.37,675.58,1.67414076]
[1748091684769,0.29569614,676.37,675.59,0.88614076]
[1748091685872,0.29569614,676.37,675.6,0.88614076]
[1748091686972,0.29569614,676.37,675.61,0.88614076]
[1748091688371,0.29569614,676.37,675.62,0.88614076]
[1748091689274,0.29569614,676.37,675.63,0.88614076]
[1748091690476,0.29569614,676.37,675.64,0.88614076]
[1748091691775,0.29569614,676.37,675.65,0.88614076]
[1748091692976,0.29569614,676.37,675.66,0.88614076]
[1748091693675,0.29569614,676.37,675.67,0.88614076]
[1748091695478,0.29569614,676.37,675.58,0.788]
[1748091695479,0.29569614,676.37,675.68,0.88614076]
[1748091696778,0.29569614,676.37,675.69,0.88614076]
[1748091697982,0.29569614,676.37,675.7,0.88614076]
[1748091699680,0.29569614,676.37,675.71,0.88614076]
[1748091700880,0.29569614,676.37,675.58,0.788]
[1748091700881,0.29569614,676.37,675.72,0.88614076]
[1748091701480,0.29569614,676.37,675.73,0.88614076]
[1748091703081,0.29569614,676.37,675.74,0.88614076]
[1748091704282,0.29569614,676.37,675.75,0.88614076]
[1748091706184,0.29569614,676.37,675.76,0.88614076]
[1748091707379,0.29569614,676.37,675.77,0.88614076]
[1748091708584,0.29569614,676.37,675.78,0.88614076]
[1748091710084,0.29569614,676.37,675.79,0.88614076]
[1748091711184,0.29569614,676.37,675.61,0.84109865]
[1748091711185,0.29569614,676.37,675.8,0.88614076]
[1748091712186,0.29569614,676.37,675.81,0.88614076]
[1748091713290,0.29569614,676.37,675.82,0.88614076]
[1748091714292,0.29569614,676.37,675.62,0.88614076]
[1748091715592,0.29569614,676.37,675.64,0.84109865]
[1748091716594,0.29569614,676.37,675.65,0.88614076]
[1748091717895,0.29569614,676.37,675.66,0.88614076]
[1748091718994,0.29569614,676.37,675.67,0.88614076]
[1748091720291,0.29569614,676.37,675.68,0.88614076]
[1748091721198,0.29569614,676.37,675.69,0.88614076]
[1748091722300,0.29569614,676.37,675.7,0.88614076]
[1748091723696,0.29569614,676.37,675.71,0.88614076]
[1748091724897,0.29569614,676.37,675.72,0.88614076]
[1748091726202,0.29569614,676.37,675.73,0.88614076]
[1748091727396,0.29569614,676.37,675.74,0.88614076]
[1748091728807,0.29569614,676.37,675.75,0.88614076]
[1748091730107,0.29569614,676.37,675.76,0.88614076]
[1748091731108,0.29569614,676.37,675.77,0.893]
[1748091731309,0.29569614,676.37,675.78,0.88614076]
[1748091732709,0.29569614,676.37,675.79,0.88614076]
[1748091733910,0.29569614,676.37,675.77,0.893]
[1748091735811,0.29569614,676.37,675.78,0.88530041]
[1748091736713,0.29569614,676.37,675.79,0.88530041]
[1748091737815,0.29569614,676.37,675.78,0.88530041]
[1748091739518,0.29569614,676.37,675.77,0.893]
[1748091742519,0.29569614,676.37,675.78,0.88481855]
[1748091744422,0.29569614,676.37,675.79,0.88481855]
[1748091745524,0.29569614,676.37,675.8,0.88481855]
[1748091746823,0.29569614,676.37,675.81,0.88481855]
[1748091748324,0.29569614,676.37,675.82,0.88481855]
[1748091749518,0.29569614,676.37,675.83,0.88481855]
[1748091751128,0.29569614,676.37,675.84,0.88481855]
[1748091752329,0.29569614,676.37,675.77,0.893]
[1748091752330,0.29569614,676.37,675.85,0.88481855]